[Event "Titled Tuesday Blitz January 31 Early 2023"]
[White "Ambartsumova, Karina"]
[Black "Mejia, Cherry Ann"]
[WhiteFideId "4166299"]
[BlackFideId "5206880"]
[WhiteElo "2393"]
[BlackElo "1935"]
[Result "0-1"]
[Round "03"]
[TimeControl "180+2"]
[Date "2023.01.31"]
[WhiteClock "0:00:03"]
[BlackClock "0:00:09"]

1. Nf3 {[%clk 0:03:00]}  d5 {[%clk 0:02:59]} 2. g3 {[%clk 0:03:00]}  Nf6 {[%clk 0:02:58]} 3. Bg2 {[%clk 0:03:00]}  b5 {[%clk 0:02:59]} 4. a4 {[%clk 0:03:00]}  b4 {[%clk 0:02:59]} 5. O-O {[%clk 0:02:59]}  e6 {[%clk 0:02:59]} 6. d4 {[%clk 0:03:00]}  c5 {[%clk 0:02:58]} 7. c4 {[%clk 0:02:59]}  Bb7 {[%clk 0:02:58]} 8. Ne5 {[%clk 0:02:56]}  cxd4 {[%clk 0:02:42]} 9. Qxd4 {[%clk 0:02:52]}  Nc6 {[%clk 0:02:42]} 10. Nxc6 {[%clk 0:02:48]}  Bxc6 {[%clk 0:02:43]} 11. a5 {[%clk 0:02:48]}  Be7 {[%clk 0:02:31]} 12. Nd2 {[%clk 0:02:41]}  O-O {[%clk 0:02:29]} 13. Nb3 {[%clk 0:02:03]}  Qc8 {[%clk 0:02:09]} 14. cxd5 {[%clk 0:01:41]}  Bxd5 {[%clk 0:02:03]} 15. Bxd5 {[%clk 0:01:37]}  Nxd5 {[%clk 0:02:03]} 16. e4 {[%clk 0:01:29]}  Bf6 {[%clk 0:01:58]} 17. Qd3 {[%clk 0:01:18]}  Ne7 {[%clk 0:01:45]} 18. f4 {[%clk 0:01:07]}  Rd8 {[%clk 0:01:44]} 19. Qf3 {[%clk 0:01:07]}  Nc6 {[%clk 0:01:17]} 20. e5 {[%clk 0:01:05]}  Be7 {[%clk 0:01:17]} 21. Be3 {[%clk 0:01:01]}  Rd3 {[%clk 0:01:16]} 22. Nc1 {[%clk 0:00:58]}  Nd4 {[%clk 0:01:04]} 23. Bxd4 {[%clk 0:00:30]}  Rxf3 {[%clk 0:01:02]} 24. Rxf3 {[%clk 0:00:31]}  Qc2 {[%clk 0:00:49]} 25. Nb3 {[%clk 0:00:30]}  Qe4 {[%clk 0:00:44]} 26. Re3 {[%clk 0:00:28]}  Qd5 {[%clk 0:00:42]} 27. Rc1 {[%clk 0:00:27]}  h6 {[%clk 0:00:31]} 28. Rc7 {[%clk 0:00:23]}  Bf8 {[%clk 0:00:31]} 29. Rc2 {[%clk 0:00:18]}  Rd8 {[%clk 0:00:30]} 30. Kf2 {[%clk 0:00:17]}  Qh1 {[%clk 0:00:27]} 31. Ree2 {[%clk 0:00:08]}  Qxh2+ {[%clk 0:00:27]} 32. Kf3 {[%clk 0:00:09]}  Qh5+ {[%clk 0:00:27]} 33. Kg2 {[%clk 0:00:09]}  Qf5 {[%clk 0:00:24]} 34. Rcd2 {[%clk 0:00:08]}  Rd7 {[%clk 0:00:15]} 35. Kf3 {[%clk 0:00:06]}  Qb1 {[%clk 0:00:14]} 36. Kg2 {[%clk 0:00:06]}  Qa2 {[%clk 0:00:14]} 37. Nc5 {[%clk 0:00:05]}  Bxc5 {[%clk 0:00:13]} 38. Bxc5 {[%clk 0:00:05]}  Rd5 {[%clk 0:00:12]} 39. Bxa7 {[%clk 0:00:04]}  Qxa5 {[%clk 0:00:12]} 40. Bf2 {[%clk 0:00:02]}  Qa8 {[%clk 0:00:12]} 41. Kg1 {[%clk 0:00:02]}  Qa1+ {[%clk 0:00:11]} 42. Kg2 {[%clk 0:00:03]}  b3 {[%clk 0:00:11]} 43. Kf3 {[%clk 0:00:02]}  Qa8 {[%clk 0:00:10]} 44. Ke3 {[%clk 0:00:02]}  Qc6 {[%clk 0:00:10]} 45. Rxd5 {[%clk 0:00:01]}  Qxd5 {[%clk 0:00:10]} 46. Rd2 {[%clk 0:00:02]}  Qc5+ {[%clk 0:00:10]} 47. Ke2 {[%clk 0:00:02]}  Qc4+ {[%clk 0:00:10]} 48. Rd3 {[%clk 0:00:03]}  Qc2+ {[%clk 0:00:10]} 49. Rd2 {[%clk 0:00:04]}  Qe4+ {[%clk 0:00:10]} 50. Be3 {[%clk 0:00:04]}  Qg2+ {[%clk 0:00:10]} 51. Bf2 {[%clk 0:00:05]}  h5 {[%clk 0:00:10]} 52. Rd3 {[%clk 0:00:05]}  Qe4+ {[%clk 0:00:09]} 53. Be3 {[%clk 0:00:04]}  Qc4 {[%clk 0:00:09]} 54. Bc1 {[%clk 0:00:03]}  Qc2+ {[%clk 0:00:09]} 55. Bd2 {[%clk 0:00:03]}  Qxb2 {[%clk 0:00:08]} 56. Rd8+ {[%clk 0:00:03]}  Kh7 {[%clk 0:00:08]} 57. Kd3 {[%clk 0:00:03]}  Kg6 {[%clk 0:00:08]} 58. Rc8 {[%clk 0:00:03]}  Qb1+ {[%clk 0:00:08]} 59. Ke2 {[%clk 0:00:03]}  b2 {[%clk 0:00:08]} 60. Rb8 {[%clk 0:00:03]}  Qe4+ {[%clk 0:00:09]} 0-1


[Site "https://www.chess.com"]

[Event "Titled Tuesday Blitz January 31 Early 2023"]
[White "Subelj, Jan"]
[Black "Rose, Felix"]
[WhiteFideId "14618583"]
[BlackFideId "5105722"]
[WhiteElo "2513"]
[BlackElo "2091"]
[Result "1-0"]
[Round "03"]
[TimeControl "180+2"]
[Date "2023.01.31"]
[WhiteClock "0:02:05"]
[BlackClock "0:00:26"]

1. b3 {[%clk 0:03:00]}  e5 {[%clk 0:02:59]} 2. Bb2 {[%clk 0:03:00]}  Nc6 {[%clk 0:02:58]} 3. c4 {[%clk 0:02:53]}  Nf6 {[%clk 0:02:47]} 4. e3 {[%clk 0:02:51]}  Bc5 {[%clk 0:02:36]} 5. a3 {[%clk 0:02:51]}  a5 {[%clk 0:02:36]} 6. Nc3 {[%clk 0:02:50]}  O-O {[%clk 0:02:34]} 7. Qc2 {[%clk 0:02:44]}  Re8 {[%clk 0:02:30]} 8. Nf3 {[%clk 0:02:41]}  e4 {[%clk 0:02:20]} 9. Ng5 {[%clk 0:02:32]}  Qe7 {[%clk 0:02:20]} 10. f3 {[%clk 0:02:28]}  exf3 {[%clk 0:02:15]} 11. Nd5 {[%clk 0:02:27]}  f2+ {[%clk 0:01:27]} 12. Kd1 {[%clk 0:02:25]}  Nd4 {[%clk 0:00:51]} 13. Nxe7+ {[%clk 0:02:08]}  Rxe7 {[%clk 0:00:51]} 14. Qd3 {[%clk 0:02:05]}  Nc6 {[%clk 0:00:26]} 15. Bxf6 {[%clk 0:02:05]} 1-0


[Site "https://www.chess.com"]

[Event "Titled Tuesday Blitz January 31 Early 2023"]
[White "Skuhala, Barbara"]
[Black "Aggelis, Nikolaos"]
[WhiteFideId "14605465"]
[BlackFideId "4213220"]
[WhiteElo "2153"]
[BlackElo "2270"]
[Result "0-1"]
[Round "03"]
[TimeControl "180+2"]
[Date "2023.01.31"]
[WhiteClock "0:00:07"]
[BlackClock "0:01:08"]

1. e4 {[%clk 0:01:02]}  c5 {[%clk 0:02:58]} 2. Nf3 {[%clk 0:01:02]}  g6 {[%clk 0:02:54]} 3. d4 {[%clk 0:01:01]}  cxd4 {[%clk 0:02:54]} 4. Nxd4 {[%clk 0:01:02]}  Bg7 {[%clk 0:02:53]} 5. f3 {[%clk 0:01:02]}  Nc6 {[%clk 0:02:52]} 6. Nb3 {[%clk 0:00:59]}  e6 {[%clk 0:02:45]} 7. c4 {[%clk 0:00:57]}  Nge7 {[%clk 0:02:44]} 8. Nc3 {[%clk 0:00:57]}  Bxc3+ {[%clk 0:02:44]} 9. bxc3 {[%clk 0:00:56]}  d5 {[%clk 0:02:45]} 10. cxd5 {[%clk 0:00:55]}  exd5 {[%clk 0:02:46]} 11. exd5 {[%clk 0:00:46]}  Qxd5 {[%clk 0:02:45]} 12. Qxd5 {[%clk 0:00:44]}  Nxd5 {[%clk 0:02:45]} 13. Bb2 {[%clk 0:00:44]}  Ne3 {[%clk 0:02:36]} 14. Kf2 {[%clk 0:00:39]}  Nxf1 {[%clk 0:02:33]} 15. Rhxf1 {[%clk 0:00:35]}  O-O {[%clk 0:02:34]} 16. Rad1 {[%clk 0:00:33]}  Be6 {[%clk 0:02:33]} 17. Ba3 {[%clk 0:00:25]}  Rfd8 {[%clk 0:02:30]} 18. Nc5 {[%clk 0:00:19]}  Bxa2 {[%clk 0:02:27]} 19. Nxb7 {[%clk 0:00:19]}  Rxd1 {[%clk 0:02:25]} 20. Rxd1 {[%clk 0:00:18]}  a5 {[%clk 0:02:25]} 21. Nc5 {[%clk 0:00:16]}  Bc4 {[%clk 0:02:20]} 22. Ne4 {[%clk 0:00:16]}  f5 {[%clk 0:02:11]} 23. Nd6 {[%clk 0:00:16]}  Bb3 {[%clk 0:02:10]} 24. Rd2 {[%clk 0:00:14]}  Ne5 {[%clk 0:02:07]} 25. f4 {[%clk 0:00:13]}  Nc4 {[%clk 0:02:00]} 26. Nxc4 {[%clk 0:00:13]}  Bxc4 {[%clk 0:02:01]} 27. Rd4 {[%clk 0:00:13]}  Rc8 {[%clk 0:02:00]} 28. g3 {[%clk 0:00:13]}  a4 {[%clk 0:02:00]} 29. h3 {[%clk 0:00:14]}  Kf7 {[%clk 0:02:00]} 30. g4 {[%clk 0:00:14]}  Ke6 {[%clk 0:01:58]} 31. Ke3 {[%clk 0:00:13]}  Bd5 {[%clk 0:01:58]} 32. Bb4 {[%clk 0:00:12]}  Ra8 {[%clk 0:01:50]} 33. Ba3 {[%clk 0:00:11]}  Rc8 {[%clk 0:01:45]} 34. Bb4 {[%clk 0:00:10]}  Rb8 {[%clk 0:01:40]} 35. gxf5+ {[%clk 0:00:08]}  gxf5 {[%clk 0:01:39]} 36. Rd1 {[%clk 0:00:08]}  Rg8 {[%clk 0:01:35]} 37. Kd4 {[%clk 0:00:07]}  Rg3 {[%clk 0:01:31]} 38. Re1+ {[%clk 0:00:06]}  Be4 {[%clk 0:01:31]} 39. Kc5 {[%clk 0:00:06]}  Rxh3 {[%clk 0:01:31]} 40. c4 {[%clk 0:00:06]}  Rb3 {[%clk 0:01:21]} 41. Ra1 {[%clk 0:00:06]}  Rf3 {[%clk 0:01:17]} 42. Rxa4 {[%clk 0:00:04]}  Rxf4 {[%clk 0:01:18]} 43. Ra6+ {[%clk 0:00:05]}  Kf7 {[%clk 0:01:17]} 44. Bc3 {[%clk 0:00:05]}  Rf3 {[%clk 0:01:16]} 45. Bd4 {[%clk 0:00:05]}  Rf1 {[%clk 0:01:14]} 46. Ra7+ {[%clk 0:00:05]}  Kg6 {[%clk 0:01:14]} 47. Ra6+ {[%clk 0:00:06]}  Kg5 {[%clk 0:01:11]} 48. Kd6 {[%clk 0:00:06]}  Rd1 {[%clk 0:01:10]} 49. Ke5 {[%clk 0:00:07]}  Bd3 {[%clk 0:01:08]} 50. c5 {[%clk 0:00:07]}  Bxa6 {[%clk 0:01:08]} 0-1


[Site "https://www.chess.com"]

[Event "Titled Tuesday Blitz January 31 Early 2023"]
[White "Alahakoon, Isuru"]
[Black "Lymar, Vladislav"]
[WhiteFideId "9900993"]
[BlackFideId "14162180"]
[WhiteElo "1819"]
[BlackElo "2119"]
[Result "0-1"]
[Round "03"]
[TimeControl "180+2"]
[Date "2023.01.31"]
[WhiteClock "0:00:01"]
[BlackClock "0:00:06"]

1. Nf3 {[%clk 0:02:59]}  c5 {[%clk 0:03:00]} 2. c3 {[%clk 0:02:58]}  d5 {[%clk 0:03:00]} 3. d4 {[%clk 0:02:58]}  Nc6 {[%clk 0:02:59]} 4. Bf4 {[%clk 0:02:58]}  Nf6 {[%clk 0:02:58]} 5. e3 {[%clk 0:02:57]}  Qb6 {[%clk 0:02:57]} 6. Qc2 {[%clk 0:02:51]}  Bf5 {[%clk 0:02:53]} 7. dxc5 {[%clk 0:02:51]}  Bxc2 {[%clk 0:02:46]} 8. cxb6 {[%clk 0:02:50]}  axb6 {[%clk 0:02:47]} 9. Na3 {[%clk 0:02:49]}  Be4 {[%clk 0:02:36]} 10. Nb5 {[%clk 0:02:48]}  Kd7 {[%clk 0:02:31]} 11. Ng5 {[%clk 0:02:39]}  Bg6 {[%clk 0:02:27]} 12. Bc7 {[%clk 0:02:28]}  Ra6 {[%clk 0:01:57]} 13. h4 {[%clk 0:02:21]}  e5 {[%clk 0:01:49]} 14. g3 {[%clk 0:02:06]}  Bc5 {[%clk 0:01:13]} 15. Bh3+ {[%clk 0:01:55]}  Ke7 {[%clk 0:01:04]} 16. b4 {[%clk 0:01:48]}  Nxb4 {[%clk 0:01:04]} 17. cxb4 {[%clk 0:01:46]}  Bxb4+ {[%clk 0:01:05]} 18. Kf1 {[%clk 0:01:44]}  Bd3+ {[%clk 0:01:02]} 19. Kg2 {[%clk 0:01:42]}  Bxb5 {[%clk 0:01:00]} 20. Bxe5 {[%clk 0:01:39]}  Bc4 {[%clk 0:00:57]} 21. a4 {[%clk 0:01:12]}  Rha8 {[%clk 0:00:54]} 22. Bd4 {[%clk 0:00:53]}  Bc5 {[%clk 0:00:50]} 23. Nf3 {[%clk 0:00:41]}  Rxa4 {[%clk 0:00:48]} 24. Rxa4 {[%clk 0:00:35]}  Rxa4 {[%clk 0:00:49]} 25. Rb1 {[%clk 0:00:34]}  Ba6 {[%clk 0:00:38]} 26. Rc1 {[%clk 0:00:28]}  Ne4 {[%clk 0:00:37]} 27. Ne5 {[%clk 0:00:18]}  f6 {[%clk 0:00:34]} 28. Nf3 {[%clk 0:00:13]}  Kd6 {[%clk 0:00:31]} 29. Rd1 {[%clk 0:00:09]}  Be2 {[%clk 0:00:26]} 30. Rc1 {[%clk 0:00:07]}  Bxf3+ {[%clk 0:00:25]} 31. Kxf3 {[%clk 0:00:07]}  Bxd4 {[%clk 0:00:26]} 32. exd4 {[%clk 0:00:07]}  Rxd4 {[%clk 0:00:27]} 33. Rc8 {[%clk 0:00:07]}  Rd3+ {[%clk 0:00:22]} 34. Kg2 {[%clk 0:00:07]}  Rd2 {[%clk 0:00:21]} 35. Rd8+ {[%clk 0:00:06]}  Kc6 {[%clk 0:00:21]} 36. Rd7 {[%clk 0:00:06]}  Rxf2+ {[%clk 0:00:20]} 37. Kg1 {[%clk 0:00:05]}  g5 {[%clk 0:00:17]} 38. Rxh7 {[%clk 0:00:04]}  Nxg3 {[%clk 0:00:15]} 39. h5 {[%clk 0:00:03]}  Rd2 {[%clk 0:00:11]} 40. h6 {[%clk 0:00:03]}  f5 {[%clk 0:00:09]} 41. Rg7 {[%clk 0:00:02]}  Rd1+ {[%clk 0:00:07]} 42. Kg2 {[%clk 0:00:01]}  Nh5 {[%clk 0:00:07]} 43. h7 {[%clk 0:00:01]}  Nxg7 {[%clk 0:00:06]} 44. h8=Q {[%clk 0:00:01]}  Ne6 {[%clk 0:00:07]} 45. Qh7 {[%clk 0:00:01]}  Nf4+ {[%clk 0:00:06]} 0-1


[Site "https://www.chess.com"]

[Event "Titled Tuesday Blitz January 31 Early 2023"]
[White "Tica, Sven"]
[Black "Zampronha, Wladimir Camilo"]
[WhiteFideId "14526948"]
[BlackFideId "2103087"]
[WhiteElo "2431"]
[BlackElo "2176"]
[Result "1-0"]
[Round "03"]
[TimeControl "180+2"]
[Date "2023.01.31"]
[WhiteClock "0:02:02"]
[BlackClock "0:00:40"]

1. e4 {[%clk 0:03:00]}  c5 {[%clk 0:02:58]} 2. Nc3 {[%clk 0:02:59]}  Nc6 {[%clk 0:02:56]} 3. f4 {[%clk 0:02:59]}  e6 {[%clk 0:02:56]} 4. Nf3 {[%clk 0:02:59]}  d5 {[%clk 0:02:55]} 5. Bb5 {[%clk 0:02:53]}  Ne7 {[%clk 0:02:55]} 6. O-O {[%clk 0:02:51]}  dxe4 {[%clk 0:02:51]} 7. Nxe4 {[%clk 0:02:51]}  a6 {[%clk 0:02:51]} 8. Bxc6+ {[%clk 0:02:50]}  Nxc6 {[%clk 0:02:52]} 9. d3 {[%clk 0:02:50]}  Be7 {[%clk 0:02:50]} 10. Be3 {[%clk 0:02:47]}  Nd4 {[%clk 0:02:43]} 11. c3 {[%clk 0:02:39]}  Nxf3+ {[%clk 0:02:42]} 12. Qxf3 {[%clk 0:02:40]}  Qxd3 {[%clk 0:02:21]} 13. Nxc5 {[%clk 0:02:39]}  Bxc5 {[%clk 0:02:16]} 14. Bxc5 {[%clk 0:02:40]}  Qxf3 {[%clk 0:02:17]} 15. Rxf3 {[%clk 0:02:40]}  Bd7 {[%clk 0:02:13]} 16. Rd3 {[%clk 0:02:38]}  O-O-O {[%clk 0:02:04]} 17. Bb6 {[%clk 0:02:37]}  Rde8 {[%clk 0:01:53]} 18. Rad1 {[%clk 0:02:37]}  Bc6 {[%clk 0:01:48]} 19. Kf2 {[%clk 0:02:36]}  Bd5 {[%clk 0:01:28]} 20. c4 {[%clk 0:02:34]}  Bc6 {[%clk 0:01:22]} 21. b3 {[%clk 0:02:34]}  h6 {[%clk 0:01:17]} 22. a4 {[%clk 0:02:33]}  g5 {[%clk 0:01:14]} 23. fxg5 {[%clk 0:02:23]}  hxg5 {[%clk 0:01:13]} 24. h3 {[%clk 0:02:23]}  f5 {[%clk 0:01:13]} 25. Rd6 {[%clk 0:02:22]}  Be4 {[%clk 0:01:02]} 26. b4 {[%clk 0:02:17]}  Rhg8 {[%clk 0:01:00]} 27. b5 {[%clk 0:02:11]}  Rh8 {[%clk 0:00:50]} 28. a5 {[%clk 0:02:09]}  Rhg8 {[%clk 0:00:46]} 29. Rd7 {[%clk 0:02:03]}  Bd5 {[%clk 0:00:41]} 30. Rc7+ {[%clk 0:02:02]}  Kb8 {[%clk 0:00:40]} 31. cxd5 {[%clk 0:02:02]} 1-0


[Site "https://www.chess.com"]

[Event "Titled Tuesday Blitz January 31 Early 2023"]
[White "Fajdetic, Hrvoje"]
[Black "Aaditya Dhingra"]
[WhiteFideId "14501945"]
[BlackFideId "25678191"]
[WhiteElo "2151"]
[BlackElo "2027"]
[Result "0-1"]
[Round "03"]
[TimeControl "180+2"]
[Date "2023.01.31"]
[WhiteClock "0:00:09"]
[BlackClock "0:00:24"]

1. d4 {[%clk 0:02:58]}  Nf6 {[%clk 0:02:58]} 2. Bf4 {[%clk 0:02:57]}  b6 {[%clk 0:02:56]} 3. Nc3 {[%clk 0:02:56]}  Bb7 {[%clk 0:02:55]} 4. Qd3 {[%clk 0:02:56]}  d5 {[%clk 0:02:52]} 5. Qh3 {[%clk 0:02:54]}  e6 {[%clk 0:02:50]} 6. e3 {[%clk 0:02:54]}  Bb4 {[%clk 0:02:49]} 7. Ne2 {[%clk 0:02:35]}  O-O {[%clk 0:02:44]} 8. a3 {[%clk 0:02:34]}  Bd6 {[%clk 0:02:42]} 9. Bg5 {[%clk 0:02:29]}  Be7 {[%clk 0:02:39]} 10. O-O-O {[%clk 0:02:22]}  a6 {[%clk 0:02:33]} 11. Nf4 {[%clk 0:02:18]}  b5 {[%clk 0:02:29]} 12. Bd3 {[%clk 0:02:17]}  Ne4 {[%clk 0:02:25]} 13. Bxe7 {[%clk 0:02:05]}  Qxe7 {[%clk 0:02:24]} 14. f3 {[%clk 0:02:01]}  Ng5 {[%clk 0:02:20]} 15. Qh4 {[%clk 0:01:54]}  f5 {[%clk 0:02:00]} 16. Nxe6 {[%clk 0:01:44]}  Qxe6 {[%clk 0:01:58]} 17. Qxg5 {[%clk 0:01:43]}  Nc6 {[%clk 0:01:57]} 18. e4 {[%clk 0:01:06]}  Nxd4 {[%clk 0:01:54]} 19. exf5 {[%clk 0:00:59]}  Qb6 {[%clk 0:01:46]} 20. f6 {[%clk 0:00:25]}  Qxf6 {[%clk 0:01:42]} 21. Qxf6 {[%clk 0:00:23]}  Rxf6 {[%clk 0:01:41]} 22. Bxh7+ {[%clk 0:00:23]}  Kxh7 {[%clk 0:01:39]} 23. Rxd4 {[%clk 0:00:24]}  c5 {[%clk 0:01:34]} 24. Rh4+ {[%clk 0:00:24]}  Kg8 {[%clk 0:01:33]} 25. Rd1 {[%clk 0:00:23]}  Rf5 {[%clk 0:01:28]} 26. b4 {[%clk 0:00:18]}  Rc8 {[%clk 0:01:21]} 27. Kb2 {[%clk 0:00:17]}  Rg5 {[%clk 0:01:14]} 28. g3 {[%clk 0:00:16]}  d4 {[%clk 0:01:05]} 29. Ne4 {[%clk 0:00:15]}  Bxe4 {[%clk 0:01:04]} 30. Rxe4 {[%clk 0:00:15]}  Rd5 {[%clk 0:00:58]} 31. bxc5 {[%clk 0:00:14]}  Rdxc5 {[%clk 0:00:58]} 32. Rd2 {[%clk 0:00:14]}  Rc3 {[%clk 0:00:58]} 33. f4 {[%clk 0:00:13]}  d3 {[%clk 0:00:55]} 34. cxd3 {[%clk 0:00:11]}  a5 {[%clk 0:00:53]} 35. h4 {[%clk 0:00:08]}  Kf7 {[%clk 0:00:49]} 36. g4 {[%clk 0:00:08]}  a4 {[%clk 0:00:46]} 37. Rb4 {[%clk 0:00:07]}  R3c5 {[%clk 0:00:46]} 38. h5 {[%clk 0:00:07]}  Rd5 {[%clk 0:00:45]} 39. d4 {[%clk 0:00:07]}  Re8 {[%clk 0:00:44]} 40. Rf2 {[%clk 0:00:06]}  Re4 {[%clk 0:00:43]} 41. Kc3 {[%clk 0:00:05]}  Re3+ {[%clk 0:00:43]} 42. Kb2 {[%clk 0:00:06]}  Rd3 {[%clk 0:00:43]} 43. g5 {[%clk 0:00:05]}  R3xd4 {[%clk 0:00:43]} 44. Rxd4 {[%clk 0:00:06]}  Rxd4 {[%clk 0:00:43]} 45. f5 {[%clk 0:00:07]}  Rh4 {[%clk 0:00:41]} 46. h6 {[%clk 0:00:06]}  gxh6 {[%clk 0:00:40]} 47. gxh6 {[%clk 0:00:06]}  Rxh6 {[%clk 0:00:40]} 48. Rc2 {[%clk 0:00:06]}  Rh3 {[%clk 0:00:36]} 49. Rc5 {[%clk 0:00:06]}  Rb3+ {[%clk 0:00:36]} 50. Ka2 {[%clk 0:00:07]}  Kf6 {[%clk 0:00:36]} 51. Rd5 {[%clk 0:00:07]}  Kg5 {[%clk 0:00:35]} 52. Rc5 {[%clk 0:00:07]}  Kf6 {[%clk 0:00:35]} 53. Rd5 {[%clk 0:00:08]}  Ke7 {[%clk 0:00:35]} 54. Rc5 {[%clk 0:00:08]}  Kd6 {[%clk 0:00:35]} 55. Rc2 {[%clk 0:00:08]}  Rf3 {[%clk 0:00:34]} 56. Rd2+ {[%clk 0:00:07]}  Kc5 {[%clk 0:00:34]} 57. Rc2+ {[%clk 0:00:08]}  Kb6 {[%clk 0:00:34]} 58. Re2 {[%clk 0:00:05]}  Rxf5 {[%clk 0:00:34]} 59. Re6+ {[%clk 0:00:06]}  Kc5 {[%clk 0:00:34]} 60. Re2 {[%clk 0:00:07]}  Kc4 {[%clk 0:00:33]} 61. Rc2+ {[%clk 0:00:06]}  Kd3 {[%clk 0:00:33]} 62. Rb2 {[%clk 0:00:07]}  Re5 {[%clk 0:00:32]} 63. Rb1 {[%clk 0:00:06]}  Re2+ {[%clk 0:00:31]} 64. Ka1 {[%clk 0:00:07]}  Kc4 {[%clk 0:00:31]} 65. Rb4+ {[%clk 0:00:06]}  Kc5 {[%clk 0:00:31]} 66. Rb1 {[%clk 0:00:05]}  Rc2 {[%clk 0:00:30]} 67. Rb4 {[%clk 0:00:04]}  Rc4 {[%clk 0:00:29]} 68. Rb2 {[%clk 0:00:04]}  Rc3 {[%clk 0:00:28]} 69. Ka2 {[%clk 0:00:04]}  Rd3 {[%clk 0:00:26]} 70. Rb1 {[%clk 0:00:04]}  Rd5 {[%clk 0:00:26]} 71. Ka1 {[%clk 0:00:04]}  Kc4 {[%clk 0:00:26]} 72. Ka2 {[%clk 0:00:04]}  Kc3 {[%clk 0:00:26]} 73. Rc1+ {[%clk 0:00:04]}  Kd2 {[%clk 0:00:26]} 74. Rb1 {[%clk 0:00:04]}  Kc2 {[%clk 0:00:26]} 75. Rb4 {[%clk 0:00:04]}  Kc3 {[%clk 0:00:25]} 76. Rb2 {[%clk 0:00:03]}  Rd2 {[%clk 0:00:25]} 77. Rxd2 {[%clk 0:00:03]}  Kxd2 {[%clk 0:00:26]} 78. Kb2 {[%clk 0:00:04]}  Kd3 {[%clk 0:00:26]} 79. Kb1 {[%clk 0:00:03]}  Kc3 {[%clk 0:00:26]} 80. Ka2 {[%clk 0:00:03]}  Kc2 {[%clk 0:00:26]} 81. Ka1 {[%clk 0:00:04]}  Kb3 {[%clk 0:00:26]} 82. Kb1 {[%clk 0:00:04]}  Kxa3 {[%clk 0:00:27]} 83. Ka1 {[%clk 0:00:05]}  Kb3 {[%clk 0:00:25]} 84. Kb1 {[%clk 0:00:06]}  b4 {[%clk 0:00:26]} 85. Ka1 {[%clk 0:00:07]}  a3 {[%clk 0:00:26]} 86. Kb1 {[%clk 0:00:08]}  Kc3 {[%clk 0:00:25]} 87. Ka1 {[%clk 0:00:09]}  b3 {[%clk 0:00:24]} 88. Kb1 {[%clk 0:00:09]}  b2 {[%clk 0:00:24]} 89. Ka2 {[%clk 0:00:08]}  Kc2 {[%clk 0:00:24]} 90. Kxa3 {[%clk 0:00:09]}  b1=Q {[%clk 0:00:24]} 0-1


[Site "https://www.chess.com"]

[Event "Titled Tuesday Blitz January 31 Early 2023"]
[White "Torres Dominguez, David"]
[Black "Martynov, Pavel"]
[WhiteFideId "2220857"]
[BlackFideId "4101260"]
[WhiteElo "1994"]
[BlackElo "2414"]
[Result "0-1"]
[Round "03"]
[TimeControl "180+2"]
[Date "2023.01.31"]
[WhiteClock "0:00:02"]
[BlackClock "0:00:14"]

1. e4 {[%clk 0:03:00]}  c5 {[%clk 0:02:59]} 2. Nc3 {[%clk 0:02:58]}  Nc6 {[%clk 0:02:58]} 3. f4 {[%clk 0:02:56]}  g6 {[%clk 0:02:56]} 4. Nf3 {[%clk 0:02:55]}  Bg7 {[%clk 0:02:56]} 5. a4 {[%clk 0:02:53]}  d6 {[%clk 0:02:55]} 6. Bb5 {[%clk 0:02:51]}  Bd7 {[%clk 0:02:54]} 7. O-O {[%clk 0:02:48]}  e6 {[%clk 0:02:50]} 8. d3 {[%clk 0:02:10]}  Nge7 {[%clk 0:02:50]} 9. Be3 {[%clk 0:02:05]}  Nd4 {[%clk 0:02:46]} 10. Bxd7+ {[%clk 0:02:04]}  Qxd7 {[%clk 0:02:46]} 11. Bxd4 {[%clk 0:01:58]}  cxd4 {[%clk 0:02:46]} 12. Ne2 {[%clk 0:01:58]}  Nc6 {[%clk 0:02:38]} 13. c4 {[%clk 0:01:53]}  dxc3 {[%clk 0:02:33]} 14. bxc3 {[%clk 0:01:50]}  O-O {[%clk 0:02:27]} 15. d4 {[%clk 0:01:50]}  Rac8 {[%clk 0:02:20]} 16. Qd3 {[%clk 0:01:49]}  Na5 {[%clk 0:02:16]} 17. Nd2 {[%clk 0:01:42]}  Rc7 {[%clk 0:02:08]} 18. f5 {[%clk 0:01:35]}  Rfc8 {[%clk 0:01:57]} 19. h4 {[%clk 0:01:25]}  Nc4 {[%clk 0:01:48]} 20. Nxc4 {[%clk 0:01:19]}  Rxc4 {[%clk 0:01:49]} 21. Rf3 {[%clk 0:01:15]}  d5 {[%clk 0:01:43]} 22. fxg6 {[%clk 0:01:06]}  hxg6 {[%clk 0:01:36]} 23. e5 {[%clk 0:01:02]}  Qe7 {[%clk 0:01:07]} 24. g3 {[%clk 0:01:01]}  R8c7 {[%clk 0:00:59]} 25. Raf1 {[%clk 0:00:58]}  Rxa4 {[%clk 0:00:55]} 26. Rxf7 {[%clk 0:00:50]}  Qxf7 {[%clk 0:00:55]} 27. Rxf7 {[%clk 0:00:51]}  Rxf7 {[%clk 0:00:52]} 28. Nf4 {[%clk 0:00:48]}  Ra1+ {[%clk 0:00:38]} 29. Kg2 {[%clk 0:00:46]}  Rf5 {[%clk 0:00:34]} 30. Nxe6 {[%clk 0:00:40]}  a5 {[%clk 0:00:23]} 31. Qb5 {[%clk 0:00:36]}  Raf1 {[%clk 0:00:16]} 32. Qe8+ {[%clk 0:00:27]}  Kh7 {[%clk 0:00:14]} 33. Ng5+ {[%clk 0:00:22]}  Rxg5 {[%clk 0:00:13]} 34. hxg5 {[%clk 0:00:15]}  Rc1 {[%clk 0:00:13]} 35. e6 {[%clk 0:00:12]}  Re1 {[%clk 0:00:13]} 36. Kf2 {[%clk 0:00:07]}  Re4 {[%clk 0:00:13]} 37. Kf3 {[%clk 0:00:07]}  a4 {[%clk 0:00:13]} 38. Qf7 {[%clk 0:00:06]}  a3 {[%clk 0:00:13]} 39. e7 {[%clk 0:00:06]}  a2 {[%clk 0:00:14]} 40. e8=Q {[%clk 0:00:05]}  Rxe8 {[%clk 0:00:13]} 41. Qxe8 {[%clk 0:00:04]}  a1=Q {[%clk 0:00:14]} 42. Qe2 {[%clk 0:00:02]}  Qxc3+ {[%clk 0:00:14]} 0-1


[Site "https://www.chess.com"]

[Event "Titled Tuesday Blitz January 31 Early 2023"]
[White "Kim, Sergey"]
[Black "Lesbekova, Assel"]
[WhiteFideId "13700570"]
[BlackFideId "13713248"]
[WhiteElo "2295"]
[BlackElo "1772"]
[Result "0-1"]
[Round "03"]
[TimeControl "180+2"]
[Date "2023.01.31"]
[WhiteClock "0:00:43"]
[BlackClock "0:00:29"]

1. d4 {[%clk 0:03:00]}  f5 {[%clk 0:02:58]} 2. c4 {[%clk 0:03:00]}  d6 {[%clk 0:02:57]} 3. Nf3 {[%clk 0:02:58]}  Nf6 {[%clk 0:02:55]} 4. g3 {[%clk 0:02:59]}  g6 {[%clk 0:02:52]} 5. Bg2 {[%clk 0:02:59]}  Bg7 {[%clk 0:02:52]} 6. O-O {[%clk 0:02:59]}  O-O {[%clk 0:02:52]} 7. Nc3 {[%clk 0:02:59]}  Nc6 {[%clk 0:02:52]} 8. d5 {[%clk 0:02:58]}  Ne5 {[%clk 0:02:51]} 9. Nxe5 {[%clk 0:02:58]}  dxe5 {[%clk 0:02:49]} 10. c5 {[%clk 0:02:59]}  e4 {[%clk 0:02:46]} 11. Qb3 {[%clk 0:02:58]}  h6 {[%clk 0:02:42]} 12. Rd1 {[%clk 0:02:55]}  Kh7 {[%clk 0:02:40]} 13. d6 {[%clk 0:02:56]}  exd6 {[%clk 0:02:36]} 14. cxd6 {[%clk 0:02:56]}  cxd6 {[%clk 0:02:35]} 15. Bf4 {[%clk 0:02:55]}  Ne8 {[%clk 0:02:30]} 16. Nb5 {[%clk 0:02:50]}  Rf6 {[%clk 0:02:14]} 17. Be5 {[%clk 0:02:33]}  Re6 {[%clk 0:02:01]} 18. Bxg7 {[%clk 0:02:30]}  Kxg7 {[%clk 0:02:01]} 19. Rac1 {[%clk 0:02:24]}  a6 {[%clk 0:01:55]} 20. Nc3 {[%clk 0:01:50]}  Re5 {[%clk 0:01:36]} 21. Nd5 {[%clk 0:01:45]}  Rb8 {[%clk 0:01:27]} 22. Nb4 {[%clk 0:01:21]}  Be6 {[%clk 0:01:23]} 23. Qa3 {[%clk 0:01:13]}  Qa5 {[%clk 0:01:13]} 24. Nc2 {[%clk 0:01:06]}  Qxa3 {[%clk 0:01:08]} 25. Nxa3 {[%clk 0:01:07]}  Bxa2 {[%clk 0:01:05]} 26. e3 {[%clk 0:01:07]}  b5 {[%clk 0:00:56]} 27. Bf1 {[%clk 0:01:07]}  Rb7 {[%clk 0:00:47]} 28. Rd2 {[%clk 0:01:01]}  Rc5 {[%clk 0:00:44]} 29. Rcd1 {[%clk 0:01:00]}  Bb3 {[%clk 0:00:37]} 30. Re1 {[%clk 0:00:59]}  Rbc7 {[%clk 0:00:33]} 31. Be2 {[%clk 0:00:45]}  b4 {[%clk 0:00:30]} 32. Nb1 {[%clk 0:00:44]}  Rc1 {[%clk 0:00:30]} 33. Kf1 {[%clk 0:00:44]}  Rxe1+ {[%clk 0:00:29]} 34. Kxe1 {[%clk 0:00:43]}  Rc1+ {[%clk 0:00:29]} 0-1


[Site "https://www.chess.com"]